Workbook

Sheet на 01.09
A1: МБОУ "Средняя общеобразовательная школа №33"
A2: Статистический отчетна 01.01.2022
B6: всего книг | C6: книг, записанных в инв. книгу | D6: сумма | E6: Распределение книг по содержанию | Q6: Из отраслевой литературы по языкам
E7: Художественная литература | G7: Справочная литература | J7: Отраслевая литература | Q7: Татарский язык по графам (10.11.12.13.14.15.16) суммарной книги | R7: Немецкий язык | S7: Английский язык | T7: другие языки
E8: на русском | F8: на татарском | G8: на русском | H8: на татарском | I8: другие языки | J8: педагогика (74) | K8: Общественно- гуманитарные науки (6-8) | L8: естественные науки (2) | M8: прикладные науки (3,4,5) | N8: языкознание (81) | O8: литературоведение (83) | P8: прочие
A9: 1 | B9: 2 | C9: 3 | D9: 4 | E9: 5 | F9: 6 | G9: 7 | H9: 8 | I9: 9 | J9: 10 | K9: 11 | L9: 12 | M9: 13 | N9: 14 | O9: 15 | P9: 16 | Q9: 17 | R9: 18 | S9: 19 | T9: 20
A10: состоит на 01.01.2021 | B10: =E10+F10+G10+H10+I10+J10+K10+L10+M10+N10+O10+P10 -> 18322 | C10: 18322 | D10: 287,882.00р. | E10: 8598 | F10: 2205 | G10: 1024 | H10: 127 | I10: 0 | J10: 1836 | K10: 1037 | L10: 438 | M10: 769 | N10: 1110 | O10: 1178 | P10: 0 | Q10: 316 | R10: 0 | S10: 0 | T10: 0
A11: поступило | B11: =E11+F11+G11+H11+I11+J11+K11+L11+M11+N11+O11+P11 -> 168 | C11: 150 | D11: 27,879.64р. | E11: 117 | F11: 8 | G11: 33 | H11: 1 | K11: 5 | M11: 4
A12: выбыло | B12: 0 | C12: =B12 -> 0
A13: состоит на 01.01.2022 | B13: 18490 | C13: 18490 | D13: =D10+D11-D12 -> 315,761.64р. | E13: 8715 | F13: 2213 | G13: 1057 | H13: 128 | I13: 0 | J13: 1836 | K13: 1042 | L13: 438 | M13: 773 | N13: 1110 | O13: 1178 | P13: 0 | Q13: 316 | R13: 0 | S13: 0 | T13: 0
A15: Суммарный учет фонда учебников
B17: количество | C17: сумма | D17: федеральный | E17: региональный | F17: ИЗО | G17: Музыка | H17: Части | J17: физ-ра
H18: на русском | I18: на татарском
A19: состоит на 01.01.2021 | B19: =D19+E19 -> 17825 | C19: 4,278,375.58р. | D19: 15390 | E19: 2435 | F19: 129 | G19: 118 | H19: 3507 | I19: 786 | J19: 1
A20: поступило | B20: =D20+E20 -> 835 | C20: 484,691.72р. | D20: 820 | E20: 15
A21: выбыло | B21: =D21+E21 -> 0
A22: состоит на 01.01.2022 | B22: =D22+E22 -> 18660 | C22: =C19+C20-C21 -> 4,763,067.30р. | D22: =D19+D20-D21 -> 16210 | E22: 2450 | F22: 129 | G22: 118 | H22: 3507 | I22: 786 | J22: 1
A23: к переносу в БАРС | B23: =D23+E23 -> 14119 | D23: =D22-F22-G22-H22-J22 -> 12455 | E23: =E22-I22 -> 1664
A25: Суммарный учет брошюры, журналы и газеты, электронные издания,АВД, дидактика, наглядные материалыCD,DVD, AVD
B27: количество | C27: сумма | D27: брошюры | E27: журналы и газеты | F27: электронные издания (CD, DVD) | G27: АВД (кассеты, диафильмы, видеокассеты) | H27: дидактика | I27: наглядные (карты, таблицы и т.п.) | J27: Примечание
A28: состоит на 01.01.2021 | B28: =D28+E28+F28+G28+H28+I28 -> 2257 | C28: 233,391.53р. | D28: 1100 | E28: 0 | F28: 0 | G28: 0 | H28: 1157 | I28: 0
A29: поступило | B29: =D29+E29+F29+G29+H29+I29 -> 350 | C29: 21,556.01р. | D29: 154 | H29: 196
A30: выбыло | B30: =D30+E30+F30+G30+H30+I30 -> 0
A31: состоит на 01.01.2022 | B31: =D31+E31+F31+G31+H31+I31 -> 2607 | C31: =C28+C29-C30 -> 254,947.54р. | D31: =D28+D29-D30 -> 1,254 | E31: 0 | F31: 0 | G31: 0 | H31: 1,353 | I31: 0
A35: Руководитель: | C35: Силаичева О.А.
A37: Исполнитель: | B37: Бисерова Е.А.
A39: телефон: | B39: (8855)254-95-03

Sheet на 01.01
A1: наименование школы
A2: Статистический отчетна 01.01.2021
B6: всего книг | C6: книг, записанных в инв. книгу | D6: сумма | E6: Распределение книг по содержанию | Q6: Из отраслевой литературы по языкам
E7: Художественная литература | G7: Справочная литература | J7: Отраслевая литература | Q7: Татарский язык по графам (10.11.12.13.14.15.16) суммарной книги | R7: Немецкий язык | S7: Английский язык | T7: другие языки
E8: на русском | F8: на татарском | G8: на русском | H8: на татарском | I8: другие языки | J8: педагогика (74) | K8: Общественно- гуманитарные науки (6-8) | L8: естественные науки (2) | M8: прикладные науки (3,4,5) | N8: языкознание (81) | O8: литературоведение (83) | P8: прочие
A9: 1 | B9: 2 | C9: 3 | D9: 4 | E9: 5 | F9: 6 | G9: 7 | H9: 8 | I9: 9 | J9: 10 | K9: 11 | L9: 12 | M9: 13 | N9: 14 | O9: 15 | P9: 16 | Q9: 17 | R9: 18 | S9: 19 | T9: 20
A10: состоит на 01.01.2020 | B10: =E10+F10+G10+H10+I10+J10+K10+L10+M10+N10+O10+P10 -> 0 | C10: =B10 -> 0
A11: поступило | B11: =E11+F11+G11+H11+I11+J11+K11+L11+M11+N11+O11+P11 -> 0 | C11: =B11 -> 0
A12: выбыло | B12: 0 | C12: 0
A13: состоит на 01.01.2021 | B13: 0 | C13: 0 | D13: =D10+D11-D12 -> 0 | E13: 0 | F13: 0 | G13: 0 | H13: 0 | I13: 0 | J13: 0 | K13: 0 | L13: 0 | M13: 0 | N13: 0 | O13: 0 | P13: 0 | Q13: 0 | R13: 0 | S13: 0 | T13: 0
A15: Суммарный учет фонда учебников
B17: количество | C17: сумма | D17: федеральный | E17: региональный | F17: ИЗО | G17: Музыка | H17: Части | J17: физ-ра
H18: на русском | I18: на татарском
A19: состоит на 01.01.2020 | B19: =D19+E19 -> 0
A20: поступило | B20: =D20+E20 -> 0
A21: выбыло | B21: =D21+E21 -> 0
A22: состоит на 01.01.2021 | B22: =D22+E22 -> 0 | C22: =C19+C20-C21 -> 0.00р. | D22: =D19+D20-D21 -> 0 | E22: 0 | F22: 0 | G22: 0 | H22: 0 | I22: 0 | J22: 0
A23: к переносу в БАРС | B23: =D23+E23 -> 0 | D23: =D22-F22-G22-H22-J22 -> 0 | E23: =E22-I22 -> 0
A25: Суммарный учет брошюры, журналы и газеты, электронные издания,АВД, дидактика, наглядные материалыCD,DVD, AVD
B27: количество | C27: сумма | D27: брошюры | E27: журналы и газеты | F27: электронные издания (CD, DVD) | G27: АВД (кассеты, диафильмы, видеокассеты) | H27: дидактика | I27: наглядные (карты, таблицы и т.п.) | J27: Примечание
A28: состоит на 01.01.2020 | B28: =D28+E28+F28+G28+H28+I28 -> 0
A29: поступило | B29: =D29+E29+F29+G29+H29+I29 -> 0
A30: выбыло | B30: =D30+E30+F30+G30+H30+I30 -> 0
A31: состоит на 01.01.2021 | B31: =D31+E31+F31+G31+H31+I31 -> 0 | C31: =C28+C29-C30 -> 0.00р. | D31: =D28+D29-D30 -> 0 | E31: 0 | F31: 0 | G31: 0 | H31: 0 | I31: 0
A35: Руководитель:
A37: Исполнитель:
A39: телефон:
